Workbook

Sheet Cover
B3: Excel Basics 9: Number Formatting as Façade & the ROUND Function
P5: Office 2016 Video #21
C25: Number Formatting displays number a certain way without changing it!
C27: Formula can't "see" Number Formatting

Sheet NF(1)
A1: What does Number Formatting do? | E1: Employee | F1: Sales
E2: Abdi | F2: 35060.7056
E3: Gigi | F3: 25341.7007
E4: Pham | F4: 24428.4659
E5: Tyrone | F5: 33965.6039
E6: Sioux | F6: 29549.5599
E7: Miki | F7: 25175.6986
E8: Naoya | F8: 47516.8732
J9: Façade:

Sheet NF(1an)
A1: What does Number Formatting do? | E1: Employee | F1: Sales
E2: Abdi | F2: 35060.7056
E3: Gigi | F3: 25341.7007
E4: Pham | F4: 24428.4659
E5: Tyrone | F5: 33965.6039
E6: Sioux | F6: 29549.5599
E7: Miki | F7: 25175.6986
E8: Naoya | F8: 47516.8732

Sheet NF(2)
A1: Price | B1: Quantity | C1: Total | E1: Formula in cell:
A2: 99.5 | B2: 2 | E2: =IF(_xlfn.ISFORMULA(C2),"Formula in cell "&ADDRESS(ROW(C2),COLUMN(C2),4)&" is:"&CHAR(10)&_xlfn.FORMULATEXT(C2)&" ("&A1&"*"&B1&")","") -> 
A6: Formulas do not “see” Number Formatting.
A7: 1) Formulas make calculations on the underlying number that sits in the cell.
A8: 2) Formulas do NOT make calculations on the Number Formatting that you see on the surface of the cell.

Sheet NF(2an)
A1: Price | B1: Quantity | C1: Total | E1: Formula in cell:
A2: 99.5 | B2: 2 | C2: =A2*B2 -> 199 | E2: ="Formula in cell "&ADDRESS(ROW(C2),COLUMN(C2),4)&" is:"&CHAR(10)&_xlfn.FORMULATEXT(C2)&" ("&A1&"*"&B1&")" -> Formula in cell C2 is: =A2*B2 (Price*Quantity)
A6: Formulas do not “see” Number Formatting.
A7: 1) Formulas make calculations on the underlying number that sits in the cell.
A8: 2) Formulas do NOT make calculations on the Number Formatting that you see on the surface of the cell.

Sheet NF(3)
A2: Number Formatting can save us a lot of time with data entry!!
F5: Sales | H5: Sales

Sheet NF(3an)
A2: Number Formatting can save us a lot of time with data entry!!
F5: Sales | H5: Sales
F6: 45 | H6: 45
F7: 65.2 | H7: 65.2
F8: 78.99 | H8: 78.99
F9: 100 | H9: 100
F10: 101 | H10: 101
F11: 95.2 | H11: 98.2
F12: 20 | H12: 20

Sheet NF(4)
B2: General | D2: Currency | F2: Accounting | I2: General Number Formatting:
B3: Sales | D3: Sales | F3: Sales | I3: General Number Formatting = What you see is what is in the cell.
B4: 45 | D4: =B4 -> 45 | F4: =D4 -> 45 | I4: General Number Formatting ERASES all previously applied Number Formatting.
B5: 0 | D5: 0 | F5: 0 | I5: Accounting Number Format:
B6: 78.99 | D6: 78.99 | F6: 78.99 | I6: Fixed dollar sign (left edge of cell).
B7: 100 | D7: 100 | F7: 100 | I7: Negatives are in parenthesis.
B8: -101 | D8: -101 | F8: -101 | I8: Zeros are dashes.
B9: 98.2 | D9: 98.2 | F9: 98.2 | I9: Decimals always line up.
B10: 20 | D10: 20 | F10: 20 | I10: Currency:
I11: Floating dollar sign.
I12: You choose how to show negatives.
I13: Zeros are zeros.
I14: Decimals usually line up.

Sheet NF(4an)
B2: General | D2: Currency | F2: Accounting | I2: General Number Formatting:
B3: Sales | D3: Sales | F3: Sales | I3: General Number Formatting = What you see is what is in the cell.
B4: 45 | D4: =B4 -> 45 | F4: =D4 -> 45 | I4: General Number Formatting ERASES all previously applied Number Formatting.
B5: 0 | D5: 0 | F5: 0 | I5: Accounting Number Format:
B6: 78.99 | D6: 78.99 | F6: 78.99 | I6: Fixed dollar sign (left edge of cell).
B7: 100 | D7: 100 | F7: 100 | I7: Negatives are in parenthesis.
B8: -101 | D8: -101 | F8: -101 | I8: Zeros are dashes.
B9: 98.2 | D9: 98.2 | F9: 98.2 | I9: Decimals always line up.
B10: 20 | D10: 20 | F10: 20 | I10: Currency:
I11: Floating dollar sign.
I12: You choose how to show negatives.
I13: Zeros are zeros.
I14: Decimals usually line up.

Sheet NF(5)
A1: Tax Rate | B1: 0.095 | D1: =B1*100&" pennies for every $1." -> 9.5 pennies for every $1. | G1: Don't get trick by Percentage Number Formatting:
A2: Tax Rate | B2: 0.095 | D2: 9.5 pennies for every $1.
G3: Tax Rate | H3: 0.0145
G4: Amount | H4: 1 | J4: 1% of $1 is 1 penny, right?
A5: Tax Rate | B5: 0.03 | D5: =B5*100&" pennies for every $1." -> 3 pennies for every $1. | G5: Tax Amount | J5: Formulas do NOT "see" Number Formatting.
A6: Tax Rate | B6: 0.03 | D6: 3 pennies for every $1. | J6: Formula Calculate on underlying Number
A8: Percentage Number Formatting
A9: For the number 0.03,
A10: Percentage Number Formatting displays the number with:
B12: 1) The decimal slid two positions to the right
B13: and
B14: 2) A percentage sign.
B16: 0.03 displays as 3.00%

Sheet NF(5an)
A1: Tax Rate | B1: 0.095 | D1: =B1*100&" pennies for every $1." -> 9.5 pennies for every $1. | G1: Don't get trick by Percentage Number Formatting:
A2: Tax Rate | B2: 0.095 | D2: 9.5 pennies for every $1.
B3: =9.5/100 -> 0.095 | G3: Tax Rate | H3: 0.0145
G4: Amount | H4: 1 | J4: 1% of $1 is 1 penny, right?
A5: Tax Rate | B5: 0.03 | D5: =B5*100&" pennies for every $1." -> 3 pennies for every $1. | G5: Tax Amount | H5: =H4*H3 -> 0.0145 | J5: Formulas do NOT "see" Number Formatting.
A6: Tax Rate | B6: 0.03 | D6: 3 pennies for every $1. | H6: 0.0145 | J6: Formula Calculate on underlying Number
A8: Percentage Number Formatting
A9: For the number 0.03,
A10: Percentage Number Formatting displays the number with:
B12: 1) The decimal slid two positions to the right
B13: and
B14: 2) A percentage sign.
B16: 0.03 displays as 3.00%

Sheet ROUND(1)
B2: How to round by hand?
B3: 1) Pick position you want to round to
B4: 2) look at digit to right:
B5: 5 or bigger ==>> add one to position you are rounding to and remove unwanted digits
B6: 4 or less ==>> remove unwanted digits
B8: 52.727625 | C8: 52.727625 | D8: 52.727625 | E8: 52.7(2+1)7625 | F8: 52.73
B9: 52.724584 | C9: 52.724584 | D9: 52.724584 | E9: 52.7(2+0)4584 | F9: 52.72
B11: We can use the ROUND function to remove unwanted decimals
B13: Payroll: | E13: No Number Format | F13: Currency Number Format does NOT Remove Decimals | G13: ROUND Removes Decimals after Penny Position
B14: Employee | C14: Tax Rate | D14: Gross Pay | E14: Tax Deduction | G14: Tax Deduction
B15: Lillian Holt | C15: 0.0765 | D15: 689.25
E16: =IF(_xlfn.ISFORMULA(E15),"Formula in above cell is: "&_xlfn.FORMULATEXT(E15),"") -> 
E18: Rules for ROUND Function second argument:
E19: Round to penny (hundredths position) use 2
E20: Round to dollar (ones position) use 0
E21: Round to thousands (thousands position) use -3

Sheet ROUND(1an)
B2: How to round by hand?
B3: 1) Pick position you want to round to
B4: 2) look at digit to right:
B5: 5 or bigger ==>> add one to position you are rounding to and remove unwanted digits
B6: 4 or less ==>> remove unwanted digits
B8: 52.727625 | C8: 52.727625 | D8: 52.727625 | E8: 52.7(2+1)7625 | F8: 52.73
B9: 52.724584 | C9: 52.724584 | D9: 52.724584 | E9: 52.7(2+0)4584 | F9: 52.72
B11: We can use the ROUND function to remove unwanted decimals
B13: Payroll: | E13: No Number Format | F13: Currency Number Format does NOT Remove Decimals | G13: ROUND Removes Decimals after Penny Position
B14: Employee | C14: Tax Rate | D14: Gross Pay | E14: Tax Deduction | G14: Tax Deduction
B15: Lillian Holt | C15: 0.0765 | D15: 689.25 | E15: =D15*C15 -> 52.727625 | F15: =D15*C15 -> 52.727625 | G15: =ROUND(D15*C15,2) -> 52.73
E16: =IF(_xlfn.ISFORMULA(E15),"Formula in above cell is: "&_xlfn.FORMULATEXT(E15),"") -> Formula in above cell is: =D15*C15 | F16: Formula in above cell is: =D15*C15 | G16: Formula in above cell is: =ROUND(D15*C15,2)
E18: Rules for ROUND Function second argument:
E19: Round to penny (hundredths position) use 2
E20: Round to dollar (ones position) use 0
E21: Round to thousands (thousands position) use -3

Sheet ROUND(2)
A1: When you MUST use ROUND: | D1: When not to use ROUND:
A2: 1) You are required to round, like with Money. | D2: When you are just looking at number, then you can use Number Formatting
A3: 2) You have extraneous decimals, like past the penny position.
A4: 3) You will use formula result in a subsequent formula.
A6: Rules for ROUND: | D6: Examples where you often have to round your numbers:
A7: Round to penny (hundredths position) use 2 | D7: Payroll
A8: Round to dollar (ones position) use 0 | D8: Invoices
A9: Round to thousands (thousands position) use -3 | D9: Income Taxes
A12: Payroll: | C12: No ROUND | D12: ROUND
A13: Employee | B13: Gross Pay ($) | C13: Tax Deduction | D13: Tax Deduction | F13: Type What you see:
A14: Lillian Holt | B14: 689.25
A15: Jasmine Phelps | B15: 765.71
A16: Sadie Hudson | B16: 687.43
B17: Total
A19: Tax Rate | B19: 0.0765
A22: Invoicing:
A23: Invoice Number | B23: 1025
A24: Item | B24: Price ($) | C24: Units | D24: Total | H24: Total
A25: 1'' screws | B25: 0.0513 | C25: 31 | H25: =C25*B25 -> 1.5903
A26: 2'' screws | B26: 0.0775 | C26: 21 | H26: =C26*B26 -> 1.6275
A27: 6" lock pads | B27: 1.057 | C27: 11 | H27: =C27*B27 -> 11.627
C28: Subtotal | D28: =SUM(D25:D27) -> 0 | F28: Tax Rate | H28: =SUM(H25:H27) -> 14.8448
C29: Tax | F29: 0.0975
C30: Total | D30: =SUM(D28:D29) -> 0
A31: Thanks for your Order!
A33: **Payroll Taxes and Invoices often times have to round to the penny.
A34: **Sometimes for INCOME TAXES you have to round to the dollar.
A36: Income Tax:
A37: Taxable Amount | B37: Tax rounded to dollar | D37: Tax Rate
A38: 2345.98 | D38: 0.155
A39: 345.49
A40: 235.8
A41: 2541.12

Sheet ROUND(2an)
A1: When you MUST use ROUND: | D1: When not to use ROUND:
A2: 1) You are required to round, like with Money. | D2: When you are just looking at number, then you can use Number Formatting
A3: 2) You have extraneous decimals, like past the penny position.
A4: 3) You will use formula result in a subsequent formula.
A6: Rules for ROUND: | D6: Examples where you often have to round your numbers:
A7: Round to penny (hundredths position) use 2 | D7: Payroll
A8: Round to dollar (ones position) use 0 | D8: Invoices
A9: Round to thousands (thousands position) use -3 | D9: Income Taxes
A12: Payroll: | C12: No ROUND | D12: ROUND
A13: Employee | B13: Gross Pay | C13: Tax Deduction | D13: Tax Deduction | F13: Type What you see:
A14: Lillian Holt | B14: 689.25 | C14: =B14*$B$19 -> 52.727625 | D14: =ROUND(B14*$B$19,2) -> 52.73 | F14: 52.73
A15: Jasmine Phelps | B15: 765.71 | C15: =B15*$B$19 -> 58.576815 | D15: =ROUND(B15*$B$19,2) -> 58.58 | F15: 58.58
A16: Sadie Hudson | B16: 687.43 | C16: 52.588395 | D16: 52.59 | F16: 52.59
B17: Total | C17: =SUM(C14:C16) -> 163.892835 | D17: =SUM(D14:D16) -> 163.9 | F17: =SUM(F14:F16) -> 163.9
A19: Tax Rate | B19: 0.0765
A22: Invoicing:
A23: Invoice Number | B23: 1025
A24: Item | B24: Price | C24: Units | D24: Total | H24: Total
A25: 1'' screws | B25: 0.0513 | C25: 31 | D25: =ROUND(C25*B25,2) -> 1.59 | H25: =C25*B25 -> 1.5903
A26: 2'' screws | B26: 0.0775 | C26: 21 | D26: =ROUND(C26*B26,2) -> 1.63 | H26: =C26*B26 -> 1.6275
A27: 6" lock pads | B27: 1.057 | C27: 11 | D27: 11.63 | H27: =C27*B27 -> 11.627
C28: Subtotal | D28: =SUM(D25:D27) -> 14.85 | F28: Tax Rate | H28: =SUM(H25:H27) -> 14.8448
C29: Tax | D29: =ROUND(D28*F29,2) -> 1.45 | F29: 0.0975
C30: Total | D30: =SUM(D28:D29) -> 16.3
A31: Thanks for your Order!
A33: **Payroll Taxes and Invoices often times have to round to the penny.
A34: **Sometimes for INCOME TAXES you have to round to the dollar.
A36: Income Tax:
A37: Taxable Amount | B37: Tax rounded to dollar | D37: Tax Rate
A38: 2345.98 | B38: =ROUND(A38*$D$38,0) -> 364 | D38: 0.155
A39: 345.49 | B39: =ROUND(A39*$D$38,0) -> 54
A40: 235.8 | B40: 37
A41: 2541.12 | B41: 394

Sheet HW ==>>

Sheet HW(1)
A1: Calculate the Tax Deduction for each employee and then add to get the Total Tax Deduction
A3: Employee | B3: Gross Pay | C3: Tax Deduction | E3: Tax Rate
A4: Sioux | B4: 5262.26 | E4: 0.01475
A5: Lindee | B5: 5531.85
A6: Billy | B6: 5867.76
A7: Mo | B7: 4976.26
A8: Abdi | B8: 5938.27
A9: Lindee | B9: 4290.34
A10: Chin | B10: 5000.4
A11: Danny | B11: 4780.87
A12: Osborn | B12: 4536.95
A13: Phil | B13: 4070.94
A14: Ann | B14: 5018.73
A15: Sioux | B15: 4322.54
A16: ShelaDawn | B16: 4969.74
B17: Total

Sheet HW(1an)
A1: Calculate the Tax Deduction for each employee and then add to get the Total Tax Deduction
A3: Employee | B3: Gross Pay | C3: Tax Deduction | E3: Tax Rate | G3: Incorrect
A4: Sioux | B4: 5262.26 | C4: =ROUND(B4*$E$4,2) -> 77.62 | E4: 0.01475 | G4: =B4*$E$4 -> 77.618335
A5: Lindee | B5: 5531.85 | C5: 81.59 | G5: 81.5947875
A6: Billy | B6: 5867.76 | C6: 86.55 | G6: 86.54946
A7: Mo | B7: 4976.26 | C7: 73.4 | G7: 73.399835
A8: Abdi | B8: 5938.27 | C8: 87.59 | G8: 87.5894825
A9: Lindee | B9: 4290.34 | C9: 63.28 | G9: 63.282515
A10: Chin | B10: 5000.4 | C10: 73.76 | G10: 73.7559
A11: Danny | B11: 4780.87 | C11: 70.52 | G11: 70.5178325
A12: Osborn | B12: 4536.95 | C12: 66.92 | G12: 66.9200125
A13: Phil | B13: 4070.94 | C13: 60.05 | G13: 60.046365
A14: Ann | B14: 5018.73 | C14: 74.03 | G14: 74.0262675
A15: Sioux | B15: 4322.54 | C15: 63.76 | G15: 63.757465
A16: ShelaDawn | B16: 4969.74 | C16: 73.3 | G16: 73.303665
B17: Total | C17: =SUM(C4:C16) -> 952.37 | G17: =SUM(G4:G16) -> 952.3619225

Sheet HW(2)
A1: What is misleading about the below spreadhseet?
A3: Employee | B3: Sales | C3: Tax Deduction | E3: Tax Rate
A4: Sioux | B4: 300 | C4: =B4*$E$4 -> 31.425 | E4: 0.10475
A5: Lindee | B5: 300 | C5: 31.425
A6: Billy | B6: 300 | C6: 31.425
A7: Mo | B7: 300 | C7: 31.425
A8: Abdi | B8: 300 | C8: 31.425
A9: Lindee | B9: 400 | C9: 41.9
A10: Chin | B10: 300 | C10: 31.425
A11: Danny | B11: 400 | C11: 41.9
A12: Osborn | B12: 300 | C12: 31.425
A13: Phil | B13: 400 | C13: 41.9
A14: Ann | B14: 400 | C14: 41.9
A15: Sioux | B15: 200 | C15: 20.95
A16: ShelaDawn | B16: 400 | C16: 41.9

Sheet HW(2an)
A1: What is misleading about the below spreadhseet?
A3: Employee | B3: Sales | C3: Tax Deduction | E3: Tax Rate
A4: Sioux | B4: 300 | C4: =B4*$E$4 -> 31.425 | E4: 0.10475
A5: Lindee | B5: 300 | C5: 31.425
A6: Billy | B6: 300 | C6: 31.425
A7: Mo | B7: 300 | C7: 31.425 | E7: Answer: The Tax Rate has had the decimals decreased. I
A8: Abdi | B8: 300 | C8: 31.425 | E8: am not sure if the person who created this thought the tax
A9: Lindee | B9: 400 | C9: 41.9 | E9: rate is supposed to be 10% or not, or if the formula result is
A10: Chin | B10: 300 | C10: 31.425 | E10: correct. I do know that the formula can NOT "see" Number
A11: Danny | B11: 400 | C11: 41.9 | E11: Formatting.
A12: Osborn | B12: 300 | C12: 31.425
A13: Phil | B13: 400 | C13: 41.9
A14: Ann | B14: 400 | C14: 41.9
A15: Sioux | B15: 200 | C15: 20.95
A16: ShelaDawn | B16: 400 | C16: 41.9
